fUSD/lending_fUSD_20250716
["ID","MTS","AMOUNT","RATE_DAILY","PERIOD"]
[372456403,1752649853613,-500.0,0.00021917,2]
[372456405,1752649853622,-500.0,0.00021917,2]
[372456407,1752649853632,-500.0,0.00021917,2]
[372456409,1752649853642,-500.0,0.00021917,2]
[372456411,1752649853652,-500.0,0.00021917,2]
[372456413,1752649853663,-500.0,0.00021917,2]
[372456415,1752649853673,-500.0,0.00021917,2]
[372456417,1752649853682,-500.0,0.00021917,2]
[372456419,1752649853691,-500.0,0.00021917,2]
[372456421,1752649853701,-500.0,0.00021917,2]
[372456423,1752649853711,-500.0,0.00021917,2]
[372456425,1752649853720,-500.0,0.00021917,2]
[372456427,1752649853730,-914.55,0.00021917,2]
[372456429,1752649853740,-460.0,0.00021917,2]
[372456431,1752649853749,-460.0,0.00021917,2]
[372456433,1752649853760,-6769.49,0.00021917,2]
[372456435,1752649853770,-2247.43,0.00021917,2]
[372456437,1752649853781,-16846.02,0.00021917,2]
[372456439,1752649853791,-460.0,0.00021917,2]
[372456441,1752649853800,-460.0,0.00021917,2]
[372456443,1752649853810,-536.29,0.00021917,2]
[372456444,1752649853819,-2977.53,0.00021917,2]
[372456446,1752649853829,-460.0,0.00021917,2]
[372456449,1752649853838,-460.0,0.00021917,2]
[372456450,1752649853848,-460.0,0.00021917,2]
[372456452,1752649853858,-2376.49,0.00021917,2]
[372456455,1752649853867,-670.08,0.00021917,2]
[372456456,1752649853877,-460.0,0.00021917,2]
[372456459,1752649853887,-460.0,0.00021917,2]
[372456461,1752649853896,-932.03,0.00021917,2]
[372456462,1752649853906,-460.0,0.00021917,2]
[372456465,1752649853916,-3095.982178,0.00021917,2]
[372456467,1752649853926,-841.8,0.00021917,2]
[372456469,1752649853935,-745.4,0.00021917,2]
[372456471,1752649853945,-152.839817,0.00021917,2]
[372456473,1752649853955,-745.4,0.00021917,2]
[372456475,1752649853966,-603.97,0.00021917,2]
[372456477,1752649853976,-3948.98,0.00021917,2]
[372456479,1752649853985,-745.4,0.00021917,2]
[372456481,1752649853995,-745.4,0.00021917,2]
[372456483,1752649854013,-745.4,0.00021917,2]
[372456486,1752649854025,-745.4,0.00021917,2]
[372456488,1752649854035,-460.0,0.00021917,2]
[372456490,1752649854045,-158.061984,0.00021917,2]
[372456492,1752649854056,-461.48885521,0.00021917,2]
[372456494,1752649854066,-745.4,0.00021917,2]
[372456496,1752649854076,-745.4,0.00021917,2]
[372456498,1752649854086,-460.0,0.00021917,2]
[372456500,1752649854095,-745.4,0.00021917,2]
[372456502,1752649854105,-745.4,0.00021917,2]
[372456504,1752649854115,-460.0,0.00021917,2]
[372456506,1752649854125,-5412.69,0.00021917,2]
[372456508,1752649854135,-460.0,0.00021917,2]
[372456510,1752649854144,-745.4,0.00021917,2]
[372456512,1752649854154,-745.4,0.00021917,2]
[372456514,1752649854164,-1310.32,0.00021917,2]
[372456516,1752649854174,-1544.34,0.00021917,2]
[372456518,1752649854184,-462.39797071,0.00021917,2]
[372456520,1752649854194,-465.01,0.00021917,2]
[372456522,1752649854204,-6825.57,0.00021917,2]
[372456524,1752649854214,-500.0,0.00021917,2]
[372456526,1752649854224,-1646.47,0.00021917,2]
[372456528,1752649854234,-500.0,0.00021917,2]
[372456530,1752649854243,-5661.1,0.00021917,2]
[372456532,1752649854253,-7256.48,0.00021917,2]
[372456534,1752649854263,-3585.030585,0.00021917,2]
[372456536,1752649854273,-460.0,0.00021917,2]
[372456538,1752649854283,-6259.44,0.00021917,2]
[372456540,1752649854293,-7759.6,0.00021917,2]
[372456542,1752649854304,-460.0,0.00021917,2]
[372456544,1752649854314,-3685.813571,0.00021917,2]
[372456546,1752649854324,-460.0,0.00021917,2]
[372456548,1752649854334,-460.0,0.00021917,2]
[372456550,1752649854343,-4706.97,0.00021917,2]
[372456552,1752649854354,-493.28762496,0.00021917,2]
[372456554,1752649854364,-860.15,0.00021917,2]
[372456556,1752649854374,-460.0,0.00021917,2]
[372456558,1752649854383,-4520.63,0.00021917,2]
[372456560,1752649854393,-468.62,0.00021917,2]
[372456562,1752649854403,-460.0,0.00021917,2]
[372456564,1752649854414,-460.0,0.00021917,2]
[372456566,1752649854423,-460.0,0.00021917,2]
[372456568,1752649854433,-9817.49,0.00021917,2]
[372456571,1752649854443,-2029.75,0.00021917,2]
[372456573,1752649854459,-460.0,0.00021917,2]
[372456575,1752649854469,-979.81,0.00021917,2]
[372456577,1752649854482,-500.80628056,0.00021917,2]
[372456579,1752649854493,-13282.66,0.00021917,2]
[372456582,1752649854506,-588.21,0.00021917,2]
[372456583,1752649854516,-460.0,0.00021917,2]
[372456586,1752649854526,-1614.65,0.00021917,2]
[372456587,1752649854536,-460.0,0.00021917,2]
[372456588,1752649854546,-727.33,0.00021917,2]
[372456589,1752649854556,-460.0,0.00021917,2]
[372456590,1752649854567,-5233.83,0.00021917,2]
[372456591,1752649854577,-460.0,0.00021917,2]
[372456592,1752649854586,-460.0,0.00021917,2]
[372456593,1752649854595,-992.01,0.00021917,2]
[372456594,1752649854603,-1674.03,0.00021917,2]
[372456595,1752649854613,-488.47,0.00021917,2]
[372456596,1752649854622,-147622.26,0.00021917,2]
[372456597,1752649854632,-2839.84,0.00021917,2]
[372456598,1752649854642,-1013.65,0.00021917,2]
[372456599,1752649854652,-1792.36,0.00021917,2]
[372456600,1752649854662,-460.0,0.00021917,2]
[372456601,1752649854672,-5923.58,0.00021917,2]
[372456602,1752649854682,-555.78,0.00021917,2]
[372456603,1752649854692,-460.0,0.00021917,2]
[372456604,1752649854704,-5825.2,0.00021917,2]
[372456606,1752649854714,-3994.52,0.00021917,2]
[372456608,1752649854724,-3745.04,0.00021917,2]
[372456610,1752649854735,-460.0,0.00021917,2]
[372456612,1752649854744,-553.07,0.00021917,2]
[372456614,1752649854755,-388.48162828,0.00021917,2]
[372456616,1752649854766,-460.0,0.00021917,2]
[372456618,1752649854776,-460.0,0.00021917,2]
[372456620,1752649854786,-558.52,0.00021917,2]
[372456622,1752649854797,-500.0,0.00021917,2]
[372456624,1752649854807,-500.0,0.00021917,2]
[372456626,1752649854816,-801.08,0.00021917,2]
[372456628,1752649854826,-460.0,0.00021917,2]
[372456630,1752649854836,-7304.9,0.00021917,2]
[372456632,1752649854846,-460.0,0.00021917,2]
[372456634,1752649854856,-460.0,0.00021917,2]
[372456635,1752649854867,-13380.66,0.00021917,2]
[372456636,1752649854876,-460.0,0.00021917,2]
[372456637,1752649854886,-8235.46,0.00021917,2]
[372456638,1752649854896,-1242.42,0.00021917,2]
[372456639,1752649854910,-8849.43,0.00021917,2]
[372456640,1752649854920,-500.0,0.00021917,2]
[372456641,1752649854931,-500.0,0.00021917,2]
[372456642,1752649854940,-500.0,0.00021917,2]
[372456643,1752649854951,-500.0,0.00021917,2]
[372456644,1752649854962,-500.0,0.00021917,2]
[372456645,1752649854972,-500.0,0.00021917,2]
[372456646,1752649854983,-460.0,0.00021917,2]
[372456647,1752649854993,-500.0,0.00021917,2]
[372456649,1752649855003,-1169.98,0.00021917,2]
[372456651,1752649855014,-862.49,0.00021917,2]
[372456653,1752649855024,-500.0,0.00021917,2]
[372456655,1752649855034,-460.0,0.00021917,2]
[372456657,1752649855043,-460.0,0.00021917,2]
[372456659,1752649855054,-460.0,0.00021917,2]
[372456661,1752649855064,-460.0,0.00021917,2]
[372456663,1752649855074,-526.21928872,0.00021917,2]
[372456665,1752649855084,-7476.76,0.00021917,2]
[372456667,1752649855094,-460.0,0.00021917,2]
[372456669,1752649855104,-15321.27,0.00021917,2]
[372456671,1752649855115,-809.51,0.00021917,2]
[372456673,1752649855125,-3822.0,0.00021917,2]
[372456674,1752649855135,-1088.91,0.00021917,2]
[372456675,1752649855145,-4920.14,0.00021917,2]
[372456676,1752649855155,-151.0,0.00021917,2]
[372456677,1752649855165,-460.0,0.00021917,2]
[372456678,1752649855176,-460.0,0.00021917,2]
[372456679,1752649855186,-573.82,0.00021917,2]
[372456680,1752649855196,-1089.06,0.00021917,2]
[372456681,1752649855206,-1746.59,0.00021917,2]
[372456682,1752649855217,-460.0,0.00021917,2]
[372456683,1752649855227,-2093.7,0.00021917,2]
[372456684,1752649855237,-503.68,0.00021917,2]
[372456685,1752649855248,-460.0,0.00021917,2]
[372456686,1752649855258,-2200.75,0.00021917,2]
[372456687,1752649855269,-552.12,0.00021917,2]
[372456688,1752649855279,-151.0,0.00021917,2]
[372456689,1752649855289,-1878.59,0.00021917,2]
[372456690,1752649855300,-10184.18,0.00021917,2]
[372456691,1752649855310,-5904.37,0.00021917,2]
[372456692,1752649855321,-858.23,0.00021917,2]
[372456693,1752649855331,-460.0,0.00021917,2]
[372456694,1752649855341,-460.0,0.00021917,2]
[372456695,1752649855353,-460.0,0.00021917,2]
[372456696,1752649855363,-460.0,0.00021917,2]
[372456697,1752649855373,-460.0,0.00021917,2]
[372456698,1752649855383,-460.0,0.00021917,2]
[372456699,1752649855393,-12328.49,0.00021917,2]
[372456700,1752649855403,-22180.99,0.00021917,2]
[372456701,1752649855413,-18231.22,0.00021917,2]
[372456702,1752649855423,-752.74,0.00021917,2]
[372456703,1752649855433,-4623.26,0.00021917,2]
[372456704,1752649855443,-551.52,0.00021917,2]
[372456705,1752649855454,-5064.4,0.00021917,2]
[372456706,1752649855464,-460.0,0.00021917,2]
[372456707,1752649855474,-460.0,0.00021917,2]
[372456708,1752649855490,-1876.99,0.00021917,2]
[372456709,1752649855500,-499.38,0.00021917,2]
[372456710,1752649855511,-14461.97,0.00021917,2]
[372456711,1752649855522,-1925.3,0.00021917,2]
[372456712,1752649855533,-1644.06,0.00021917,2]
[372456713,1752649855543,-460.0,0.00021917,2]
[372456714,1752649855554,-151.0,0.00021917,2]
[372456715,1752649855564,-1544.24,0.00021917,2]
[372456716,1752649855574,-3023.62,0.00021917,2]
[372456717,1752649855584,-3077.63,0.00021917,2]
[372456718,1752649855594,-475.91,0.00021917,2]
[372456719,1752649855604,-1427.28,0.00021917,2]
[372456720,1752649855614,-460.0,0.00021917,2]
[372456721,1752649855625,-460.0,0.00021917,2]
[372456722,1752649855636,-5734.21,0.00021917,2]
[372456723,1752649855646,-460.0,0.00021917,2]
[372456724,1752649855658,-151.0,0.00021917,2]
[372456725,1752649855668,-1546.09,0.00021917,2]
[372456726,1752649855677,-151.0,0.00021917,2]
[372456727,1752649855688,-2584.2,0.00021917,2]
[372456728,1752649855698,-799.53,0.00021917,2]
[372456729,1752649855708,-460.0,0.00021917,2]
[372456731,1752649855718,-5279.96,0.00021917,2]
[372456733,1752649855728,-687.55,0.00021917,2]
[372456734,1752649855738,-1956.06,0.00021917,2]
[372456735,1752649855748,-5603.96,0.00021917,2]
[372456736,1752649855758,-1641.51,0.00021917,2]
[372456737,1752649855769,-460.0,0.00021917,2]
[372456738,1752649855778,-460.0,0.00021917,2]
[372456739,1752649855789,-460.0,0.00021917,2]
[372456740,1752649855799,-2152.64,0.00021917,2]
[372456741,1752649855809,-709.49,0.00021917,2]
[372456742,1752649855819,-460.0,0.00021917,2]
[372456743,1752649855829,-2584.59,0.00021917,2]
[372456744,1752649855839,-460.0,0.00021917,2]
[372456745,1752649855850,-596.68,0.00021917,2]
[372456746,1752649855860,-460.0,0.00021917,2]
[372456747,1752649855870,-1265.22,0.00021917,2]
[372456748,1752649855880,-6862.55,0.00021917,2]
[372456749,1752649855890,-2942.27,0.00021917,2]
[372456750,1752649855900,-460.0,0.00021917,2]
[372456751,1752649855910,-485.08,0.00021917,2]
[372456752,1752649855920,-460.0,0.00021917,2]
[372456753,1752649855930,-869.698443,0.00021917,2]
[372456754,1752649855940,-1842.38,0.00021917,2]
[372456755,1752649855951,-3343.59,0.00021917,2]
[372456756,1752649855961,-3673.69,0.00021917,2]
[372456759,1752649855971,-460.0,0.00021917,2]
[372456761,1752649855981,-10934.96,0.00021917,2]
[372456763,1752649855992,-1679.68,0.00021917,2]
[372456765,1752649856002,-659.48,0.00021917,2]
[372456767,1752649856012,-2151.76,0.00021917,2]
[372456769,1752649856022,-2120.23,0.00021917,2]
[372456771,1752649856032,-166.49185769,0.00021917,2]
[372456773,1752649856042,-869.698443,0.00021917,2]
[372456775,1752649856052,-1279.87,0.00021917,2]
[372456777,1752649856061,-3605.26,0.00021917,2]
[372456779,1752649856072,-6424.2,0.00021917,2]
[372456781,1752649856082,-460.0,0.00021917,2]
[372456783,1752649856091,-537.07,0.00021917,2]
[372456785,1752649856101,-508.61,0.00021917,2]
[372456787,1752649856111,-1375.33,0.00021917,2]
[372456789,1752649856121,-5397.84,0.00021917,2]
[372456791,1752649856131,-2333.07,0.00021917,2]
[372456793,1752649856141,-460.0,0.00021917,2]
[372456795,1752649856151,-460.0,0.00021917,2]
[372456797,1752649856161,-460.0,0.00021917,2]
[372456799,1752649856171,-460.0,0.00021917,2]
[372456801,1752649856181,-460.0,0.00021917,2]
[372456803,1752649856191,-598.74,0.00021917,2]
[372456805,1752649856201,-4706.99,0.00021917,2]
[372456807,1752649856211,-460.0,0.00021917,2]
[372456809,1752649856222,-460.0,0.00021917,2]
[372456810,1752649856231,-3910.76,0.00021917,2]
[372456811,1752649856243,-911.55,0.00021917,2]
[372456812,1752649856257,-589.02,0.00021917,2]
[372456813,1752649856268,-1096.89,0.00021917,2]
[372456814,1752649856277,-460.0,0.00021917,2]
[372456815,1752649856287,-5664.2,0.00021917,2]
[372456816,1752649856297,-1305.62,0.00021917,2]
[372456817,1752649856306,-460.0,0.00021917,2]
[372456818,1752649856316,-460.0,0.00021917,2]
[372456819,1752649856326,-565.67,0.00021917,2]
[372456820,1752649856336,-4954.72,0.00021917,2]
[372456821,1752649856345,-1615.68,0.00021917,2]
[372456822,1752649856355,-460.0,0.00021917,2]
[372456823,1752649856573,-460.0,0.00021917,2]
[372456824,1752649856583,-2573.17,0.00021917,2]
[372456825,1752649856592,-1434.53,0.00021917,2]
[372456826,1752649856602,-568.67,0.00021917,2]
[372456827,1752649856612,-2996.73,0.00021917,2]
[372456828,1752649856623,-171.76906243,0.00021917,2]
[372456829,1752649856633,-460.0,0.00021917,2]
[372456830,1752649856643,-460.0,0.00021917,2]
[372456831,1752649856653,-32411.52,0.00021917,2]
[372456832,1752649856663,-1516.91,0.00021917,2]
[372456833,1752649856672,-460.0,0.00021917,2]
[372456834,1752649856682,-6717.79,0.00021917,2]
[372456835,1752649856692,-460.0,0.00021917,2]
[372456836,1752649856702,-460.0,0.00021917,2]
[372456837,1752649856712,-460.0,0.00021917,2]
[372456838,1752649856722,-3185.3,0.00021917,2]
[372456839,1752649856732,-460.0,0.00021917,2]
[372456840,1752649856743,-7291.58,0.00021917,2]
[372456841,1752649856755,-2978.48,0.00021917,2]
[372456842,1752649856772,-954.51,0.00021917,2]
[372456843,1752649856782,-220.02074381,0.00021917,2]
[372456844,1752649856792,-550.67709717,0.00021917,2]
[372456845,1752649856803,-2224.58,0.00021917,2]
[372456846,1752649856813,-460.0,0.00021917,2]
[372456847,1752649856823,-460.0,0.00021917,2]
[372456848,1752649856834,-2034.76,0.00021917,2]
[372456849,1752649856844,-1658.04,0.00021917,2]
[372456850,1752649856854,-476.35,0.00021917,2]
[372456851,1752649856864,-460.0,0.00021917,2]
[372456852,1752649856874,-460.0,0.00021917,2]
[372456853,1752649856884,-460.0,0.00021917,2]
[372456854,1752649856894,-4684.92,0.00021917,2]
[372456855,1752649856904,-8120.17,0.00021917,2]
[372456856,1752649856914,-4319.86,0.00021917,2]
[372456857,1752649856924,-5674.03,0.00021917,2]
[372456858,1752649856934,-533.56711352,0.00021917,2]
[372456859,1752649856944,-7943.17,0.00021917,2]
[372456860,1752649856954,-460.0,0.00021917,2]
[372456861,1752649856964,-3172.91,0.00021917,2]
[372456862,1752649856974,-460.0,0.00021917,2]
[372456863,1752649856984,-1969.16,0.00021917,2]
[372456864,1752649856993,-488.14,0.00021917,2]
[372456865,1752649857003,-3360.53,0.00021917,2]
[372456866,1752649857015,-3815.59,0.00021917,2]
[372456867,1752649857025,-904.52,0.00021917,2]
[372456868,1752649857035,-11126.91,0.00021917,2]
[372456869,1752649857045,-1963.72,0.00021917,2]
[372456870,1752649857055,-460.0,0.00021917,2]
[372456871,1752649857065,-1886.8,0.00021917,2]
[372456872,1752649857074,-7192.45,0.00021917,2]
[372456873,1752649857085,-460.0,0.00021917,2]
[372456874,1752649857095,-757.87,0.00021917,2]
[372456875,1752649857105,-460.0,0.00021917,2]
[372456876,1752649857115,-3188.58,0.00021917,2]
[372456877,1752649857125,-778.76,0.00021917,2]
[372456878,1752649857135,-18481.23,0.00021917,2]
[372456879,1752649857144,-4093.79,0.00021917,2]
[372456880,1752649857154,-460.0,0.00021917,2]
[372456881,1752649857164,-3580.95,0.00021917,2]
[372456882,1752649857174,-3314.74,0.00021917,2]
[372456883,1752649857185,-1132.91,0.00021917,2]
[372456884,1752649857194,-503.90124771,0.00021917,2]
[372456885,1752649857204,-1107.13,0.00021917,2]
[372456886,1752649857214,-2045.2,0.00021917,2]
[372456887,1752649857224,-460.0,0.00021917,2]
[372456888,1752649857233,-460.77137677,0.00021917,2]
[372456889,1752649857243,-460.0,0.00021917,2]
[372456890,1752649857254,-7580.11,0.00021917,2]
[372456891,1752649857263,-2216.8,0.00021917,2]
[372456892,1752649857274,-877.21,0.00021917,2]
[372456893,1752649857284,-460.0,0.00021917,2]
[372456894,1752649857293,-151.0,0.00021917,2]
[372456895,1752649857302,-17868.94,0.00021917,2]
[372456896,1752649857312,-7570.65,0.00021917,2]
[372456897,1752649857322,-460.0,0.00021917,2]
[372456898,1752649857332,-460.72055114,0.00021917,2]
[372456899,1752649857342,-5201.55,0.00021917,2]
[372456900,1752649857352,-460.0,0.00021917,2]
[372456901,1752649857361,-1979.31,0.00021917,2]
[372456902,1752649857371,-621.983823,0.00021917,2]
[372456903,1752649857380,-460.0,0.00021917,2]
[372456904,1752649857394,-7483.24,0.00021917,2]
[372456905,1752649857410,-1148.63,0.00021917,2]
[372456906,1752649857420,-460.0,0.00021917,2]
[372456907,1752649857429,-685.93,0.00021917,2]
[372456908,1752649857439,-460.0,0.00021917,2]
[372456909,1752649857449,-460.0,0.00021917,2]
[372456910,1752649857458,-461.71328183,0.00021917,2]
[372456911,1752649857469,-460.0,0.00021917,2]
[372456912,1752649857480,-460.0,0.00021917,2]
[372456913,1752649857491,-534.25,0.00021917,2]
[372456914,1752649857501,-6781.48,0.00021917,2]
[372456915,1752649857510,-11017.37,0.00021917,2]
[372456916,1752649857520,-621.983823,0.00021917,2]
[372456917,1752649857530,-461.47069613,0.00021917,2]
[372456918,1752649857540,-1363.1,0.00021917,2]
[372456919,1752649857550,-5652.08,0.00021917,2]
[372456920,1752649857562,-151.858535,0.00021917,2]
[372456921,1752649857573,-499.54,0.00021917,2]
[372456922,1752649857583,-151.0,0.00021917,2]
[372456923,1752649857593,-151.0,0.00021917,2]
[372456924,1752649857604,-460.0,0.00021917,2]
[372456925,1752649857614,-460.0,0.00021917,2]
[372456926,1752649857624,-5000.0,0.00021918,2]
[372456927,1752649857634,-201.95522269,0.00021918,2]
[372456928,1752649857644,-150.0,0.00021918,2]
[372456929,1752649857655,-150.0,0.00021919,2]
[372456930,1752649857665,-150.0,0.00021923,2]
[372456931,1752649857675,-150.0,0.00021926,2]
[372456932,1752649857685,-150.0,0.00021926,2]
[372456933,1752649857695,-1121.54827395,0.00021927,2]
[372456934,1752649857704,-150.0,0.00021933,2]
[372456935,1752649857714,-150.0,0.00021939,2]
[372456936,1752649857724,-150.0,0.00021942,2]
[372456937,1752649857737,-200.0,0.00021946,2]
[372456938,1752649857747,-500.0,0.00021953,2]
[372456939,1752649857757,-841.05,0.00021953,2]
[372456940,1752649857768,-3776.95744318,0.00021954,4]
[372456941,1752649857778,-3776.95744318,0.00021954,4]
[372456942,1752649857789,-3776.95744318,0.00021954,4]
[372456943,1752649857799,-3776.95744318,0.00021954,4]
[372456944,1752649857809,-3776.95744318,0.00021954,4]
[372456945,1752649857819,-3776.95744318,0.00021954,4]
[372456946,1752649857829,-3776.95744318,0.00021954,4]
[372456947,1752649857839,-3776.95744318,0.00021954,4]
[372456948,1752649857849,-3776.95744318,0.00021954,4]
[372456949,1752649857859,-3776.95744318,0.00021954,4]
[372456950,1752649858103,-3776.95744318,0.00021954,4]
[372456951,1752649858114,-3776.95744318,0.00021954,4]
[372456952,1752649858125,-3776.95744318,0.00021954,4]
[372456953,1752649858135,-3776.95744318,0.00021954,4]
[372456954,1752649858145,-3776.95744318,0.00021954,4]
[372456955,1752649858155,-3776.95744318,0.00021954,4]
[372456956,1752649858165,-3776.95744318,0.00021954,4]
[372456957,1752649858175,-3855.02701549,0.00021954,4]
[372456958,1752649858186,-3855.02701549,0.00021954,4]
[372456959,1752649858196,-3855.02701549,0.00021954,4]
[372456960,1752649858206,-3855.02701549,0.00021954,4]
[372456961,1752649858216,-3855.02701549,0.00021954,4]
[372456962,1752649858226,-3855.02701549,0.00021954,4]
[372456963,1752649858237,-3855.02701549,0.00021954,4]
[372456964,1752649858247,-3855.02701549,0.00021954,4]
[372456965,1752649858257,-3855.02701549,0.00021954,4]
[372456966,1752649858268,-3855.02701549,0.00021954,4]
[372456967,1752649858279,-3855.02701549,0.00021954,4]
[372456968,1752649858288,-3855.02701549,0.00021954,4]
[372456969,1752649858298,-3855.02701549,0.00021954,4]
[372456970,1752649858309,-3855.02701549,0.00021954,4]
[372456971,1752649858319,-3855.02701549,0.00021954,4]
[372456972,1752649858329,-3855.02701549,0.00021954,4]
[372456973,1752649858339,-3855.02701549,0.00021954,4]
[372456974,1752649858350,-4130.82834616,0.00021954,4]
[372456975,1752649858360,-4130.82834616,0.00021954,4]
[372456976,1752649858371,-4130.82834616,0.00021954,4]
[372456977,1752649858382,-4130.82834616,0.00021954,4]
[372456978,1752649858393,-4130.82834616,0.00021954,4]
[372456979,1752649858404,-4130.82834616,0.00021954,4]
[372456980,1752649858414,-4130.82834616,0.00021954,4]
[372456981,1752649858423,-4130.82834616,0.00021954,4]
[372456982,1752649858432,-4130.82834616,0.00021954,4]
[372456983,1752649858442,-4130.82834616,0.00021954,4]
[372456984,1752649858452,-4130.82834616,0.00021954,4]
[372456985,1752649858462,-4130.82834616,0.00021954,4]
[372456986,1752649858471,-4130.82834616,0.00021954,4]
[372456987,1752649858484,-4130.82834616,0.00021954,4]
[372456988,1752649858493,-4130.82834616,0.00021954,4]
[372456989,1752649858503,-4130.82834616,0.00021954,4]
[372456990,1752649858513,-4130.82834616,0.00021954,4]
[372456991,1752649858523,-226.65347383,0.00021954,2]
[372456992,1752649858532,-4402.69667745,0.00021954,2]
[372456993,1752649858542,-160.9001406,0.00021954,2]
[372456994,1752649858552,-5958.01157054,0.00021954,2]
[372456995,1752649858562,-1181.2474321,0.00021954,2]
[372456996,1752649858572,-654.83902404,0.00021954,2]
[372456997,1752649858582,-166.75489778,0.00021954,4]
[372456998,1752649858591,-277.03669582,0.00021954,2]
[372456999,1752649858601,-150.0,0.00021955,2]
[372457000,1752649858611,-150.0,0.00021956,2]
[372457001,1752649858620,-150.0,0.00021957,2]
[372457002,1752649858630,-150.0,0.00021959,2]
[372457003,1752649858639,-150.0,0.00021961,2]
[372457004,1752649858649,-150.0,0.00021961,2]
[372457005,1752649858659,-1290.03855029,0.00021969,6]
[372457006,1752649858669,-500.0,0.00021969,2]
[372457007,1752649858678,-1675.84725157,0.00021969,2]
[372457008,1752649858688,-151.296929,0.0002197,7]
[372457009,1752649858698,-151.0,0.0002197,7]
[372457010,1752649858708,-151.0,0.0002197,7]
[372457011,1752649858717,-151.0,0.0002197,7]
[372457012,1752649858731,-151.0,0.0002197,7]
[372457013,1752649858741,-175.669267,0.0002197,7]
[372457014,1752649858751,-175.669267,0.0002197,7]
[372457015,1752649858761,-500.0,0.00021972,2]
[372457016,1752649858772,-672.14,0.00021972,2]
[372457017,1752649858782,-500.0,0.00021972,2]
[372457018,1752649858793,-500.0,0.00021972,2]
[372457019,1752649858803,-645.52834518,0.00021973,2]
[372457020,1752649858812,-506.97899802,0.00021973,2]
[372457021,1752649858822,-500.0,0.00021973,2]
[372457022,1752649858832,-500.0,0.00021973,2]
[372457023,1752649858843,-504.08184407,0.00021973,2]
[372457024,1752649858852,-500.0,0.00021973,2]
[372457025,1752649858864,-500.0,0.00021973,2]
[372457026,1752649858876,-500.0,0.00021973,2]
[372457027,1752649858886,-500.0,0.00021973,2]
[372457028,1752649858896,-500.0,0.00021973,2]
[372457029,1752649858906,-500.0,0.00021973,2]
[372457030,1752649858916,-500.0,0.00021973,2]
[372457031,1752649858925,-500.0,0.00021973,2]
[372457032,1752649858935,-500.0,0.00021973,2]
[372457033,1752649858945,-501.17518061,0.00021973,2]
[372457034,1752649858954,-501.10542618,0.00021973,2]
[372457035,1752649858964,-150.0,0.00021975,2]
[372457036,1752649858974,-150.0,0.00021978,2]
[372457037,1752649858984,-150.0,0.00021983,2]
[372457038,1752649858994,-150.0,0.00021998,2]
[372457039,1752649859004,-745.4,0.00021999,2]
[372457040,1752649859014,-1621.0,0.00022,2]
[372457041,1752649859024,-2018.524215,0.00022,2]
[372457042,1752649859034,-670.23,0.00022,2]
[372457043,1752649859044,-500.0,0.00022,2]
[372457044,1752649859054,-500.0,0.00022,2]
[372457045,1752649859063,-500.0,0.00022,2]
[372457046,1752649859073,-500.0,0.00022,2]
[372457047,1752649859083,-500.0,0.00022,2]
[372457048,1752649859093,-500.0,0.00022,2]
[372457049,1752649859103,-500.0,0.00022,2]
[372457050,1752649859112,-500.0,0.00022,2]
[372457051,1752649859122,-500.0,0.00022,2]
[372457052,1752649859133,-361.0,0.00022,2]